bitfinex-derivatives/quotes_ETHF0:USTF0_20250329
["timestamp","ask_amount","ask_price","bid_price","bid_amount"]
[1743237717159,1.06162,1884.8,1884.7,0.00795756]
[1743237717347,4.46562,1884.8,1884.7,0.00795756]
[1743237717964,4.46562,1884.8,1884.7,1.88336845]
[1743237720561,5.15502,1884.8,1884.7,1.88336845]
[1743237723551,1.06193,1884.3,1884.1,4.26979]
[1743237723750,1.06193,1884.3,1883.8,9.23255046]
[1743237723751,1.06193,1884.3,1884.2,3.24835333]
[1743237723957,1.06193,1884.3,1884.2,1.87275333]
[1743237724265,1.79073,1884.3,1884.2,1.87275333]
[1743237725154,1.06196,1884.2,1884.1,0.00795756]
[1743237725963,0.7288,1884.3,1884.1,1.38355756]
[1743237726164,4.46589,1884.4,1884.2,1.78336]
[1743237726461,4.46589,1884.4,1884.3,1.3756]
[1743237728659,1.06185,1884.4,1884.3,1.3756]
[1743237733570,1.06185,1884.4,1884.3,3.20034166]
[1743237735572,1.06196,1884.2,1884.1,0.00795756]
[1743237735774,4.46696,1884.2,1884.1,3.16795334]
[1743237735974,4.46696,1884.2,1884.1,3.90955334]
[1743237737465,4.46696,1884.2,1884.1,7.11735334]
[1743237737764,4.46696,1884.2,1884.1,3.90955334]
[1743237739569,4.46696,1884.2,1884.1,3.16795334]
[1743237739772,1.06202,1884.1,1884.0,1.82523783]
[1743237739974,1.06208,1884.0,1883.9,3.1055635]
[1743237740270,1.06208,1884.0,1883.9,3.21816334]
[1743237740575,2.49208,1884.0,1883.9,3.21816334]
[1743237748077,1.06208,1884.0,1883.9,3.21816334]
[1743237748275,1.06208,1884.0,1883.9,3.92666334]
[1743237749581,1.06208,1884.0,1883.9,3.21816334]
[1743237749781,2.46008,1884.0,1883.9,3.21816334]
[1743237750478,1.06213,1883.9,1883.8,0.61672914]
[1743237750684,5.86513,1883.9,1883.8,0.61672914]
[1743237750884,8.36513,1883.9,1883.8,9.14e-06]
[1743237751082,1.06236,1883.5,1883.4,3.9093]
[1743237751376,4.46736,1883.5,1883.4,3.9093]
[1743237752376,4.46736,1883.5,1883.4,5.3138]
[1743237758109,3.405,1883.5,1883.4,6.37621]
[1743237758388,0.00795756,1883.6,1883.4,5.3138]
[1743237758587,0.00795756,1883.6,1883.5,2.50476]
[1743237758780,4.47625756,1883.6,1883.5,1.4424]
[1743237758980,4.47625756,1883.6,1883.5,2.50476]
[1743237759486,4.47625756,1883.6,1883.5,1.4424]
[1743237760585,4.47625756,1883.6,1883.5,2.50476]
[1743237760790,3.41395756,1883.6,1883.5,2.50476]
[1743237762388,4.47625756,1883.6,1883.5,2.50476]
[1743237763396,4.47625756,1883.6,1883.5,1.4424]
[1743237764185,5.87505756,1883.6,1883.5,1.4424]
[1743237773198,5.87505756,1883.6,1883.5,3.12221138]
[1743237773698,1.07025756,1883.6,1883.5,4.18457138]
[1743237773901,1.07025756,1883.6,1883.5,7.39237138]
[1743237773902,3.41395756,1883.6,1883.5,7.39237138]
[1743237774698,3.41395756,1883.6,1883.5,9.21935868]
[1743237775688,0.00795756,1883.6,1883.5,16.25286868]
[1743237776301,3.406,1883.7,1883.6,1.0623]
[1743237776603,3.406,1883.7,1883.6,4.9423873]
[1743237777298,3.406,1883.7,1883.6,6.62219868]
[1743237785105,3.406,1883.7,1883.6,9.82999868]
[1743237788113,3.406,1883.7,1883.6,6.62219868]
[1743237790307,3.406,1883.7,1883.6,9.82999868]
[1743237792317,4.46824,1883.7,1883.6,4.87109868]
[1743237792512,7.25664,1883.7,1883.6,4.87109868]
[1743237793917,7.25664,1883.7,1883.6,5.93339868]
[1743237794118,3.406,1883.7,1883.6,5.93339868]
[1743237794918,0.00795756,1883.8,1883.7,1.06224]
[1743237795214,3.41295756,1883.8,1883.7,6.59003868]
[1743237795415,3.41295756,1883.8,1883.7,7.32813868]
[1743237797125,4.47514756,1883.8,1883.7,7.32813868]
[1743237797419,3.41295756,1883.8,1883.7,7.32813868]
[1743237797724,4.47514756,1883.8,1883.7,7.32813868]
[1743237798317,3.41295756,1883.8,1883.7,7.32813868]
[1743237799225,0.00795756,1883.8,1883.7,7.32813868]
[1743237803925,0.00795756,1883.8,1883.7,10.53593868]
[1743237804524,0.00795756,1883.8,1883.7,7.32813868]
[1743237804726,0.00795756,1883.8,1883.7,10.53593868]
[1743237809329,5.89381,1884.0,1883.9,1.06213]
[1743237809528,4.8317,1884.0,1883.9,2.8891173]
[1743237810027,4.8317,1884.0,1883.9,4.56892868]
[1743237810231,5.89378,1884.0,1883.9,4.56892868]
[1743237810426,2.8076,1884.0,1883.9,4.56892868]
[1743237810731,0.00795756,1884.1,1884.0,1.06208]
[1743237810940,0.00795756,1884.1,1884.0,5.7804673]
[1743237811226,0.00795756,1884.1,1884.0,7.46027868]
[1743237813629,0.00795756,1884.1,1884.0,10.66807868]
[1743237814538,0.00795756,1884.1,1884.0,7.46027868]
[1743237814834,0.00795756,1884.1,1884.0,10.66807868]
[1743237818335,1.06997756,1884.1,1884.0,9.21497868]
[1743237818525,2.54367756,1884.1,1884.0,9.21497868]
[1743237818728,1.48165756,1884.1,1884.0,9.21497868]
[1743237821133,2.54367756,1884.1,1884.0,9.21497868]
[1743237821338,2.54367756,1884.1,1884.0,3.50679868]
[1743237821531,8.25147756,1884.1,1884.0,1.67981138]
[1743237821730,1.06224,1883.7,1883.6,1.61281138]
[1743237821933,4.46624,1883.7,1883.6,1.61281138]
[1743237823340,4.46624,1883.7,1883.6,1.4796]
[1743237825438,4.46624,1883.7,1883.6,2.5419]
[1743237825638,4.46624,1883.7,1883.6,1.4796]
[1743237826846,3.404,1883.7,1883.6,2.5419]
[1743237827144,5.92712,1883.8,1883.6,2.5419]
[1743237827331,5.92712,1883.8,1883.7,1.3866]
[1743237827532,4.8649,1883.8,1883.7,2.44884]
[1743237827735,3.404,1883.8,1883.7,2.44884]
[1743237828543,4.46619,1883.8,1883.7,2.44884]
[1743237828839,3.404,1883.8,1883.7,2.44884]
[1743237831546,3.404,1883.8,1883.7,4.28628913]
[1743237831742,3.404,1883.8,1883.7,5.9723686]
[1743237833351,2.42862,1884.0,1883.8,1.06214]
[1743237833545,5.83262,1884.0,1883.9,3.89694913]
[1743237834851,5.83262,1884.0,1883.9,5.5830286]
[1743237835554,5.83262,1884.0,1883.9,4.8844286]
[1743237835746,6.52592,1884.0,1883.9,4.8844286]
[1743237835945,6.52592,1884.0,1883.9,3.19834913]
[1743237837451,6.52592,1884.0,1883.9,1.83744913]
[1743237841956,1.06213,1883.9,1883.8,1.68607947]
[1743237842156,5.74503,1883.9,1883.8,3.5146755]
[1743237842561,5.74503,1883.9,1883.8,1.82859603]
[1743237844563,1.06224,1883.7,1883.6,3.14247947]
[1743237844760,4.46624,1883.7,1883.6,4.97175504]
[1743237850767,3.404,1883.7,1883.6,6.03405504]
[1743237850969,1.06222,1883.8,1883.6,6.03405504]
[1743237850970,4.46622,1883.8,1883.6,6.03405504]
[1743237851269,4.46622,1883.8,1883.7,3.91487557]
[1743237851769,4.46622,1883.8,1883.7,5.60095504]
[1743237854161,3.404,1883.8,1883.7,6.66319504]
[1743237854369,1.0621,1884.0,1883.8,1.06219]
[1743237854570,3.404,1883.9,1883.8,3.12319]
[1743237854764,3.404,1883.9,1883.8,4.95387534]
[1743237855064,3.404,1883.9,1883.8,6.63995481]
[1743237856173,1.0621,1884.0,1883.9,1.06213]
[1743237856370,0.00795756,1884.1,1884.0,1.06208]
[1743237856566,3.41195756,1884.1,1884.0,3.62556534]
[1743237856871,3.41195756,1884.1,1884.0,6.65444481]
[1743237858673,11.67331349,1884.4,1884.0,13.60986292]
[1743237858873,12.73516349,1884.4,1884.3,3.2078]
[1743237859072,14.18826349,1884.4,1884.3,5.03848534]
[1743237860063,14.18826349,1884.4,1884.3,6.48388534]
[1743237860273,14.18826349,1884.4,1884.3,8.16996481]
[1743237860678,14.18826349,1884.4,1884.3,6.48388534]
[1743237861266,14.18826349,1884.4,1884.3,3.27608534]
[1743237861475,14.92926349,1884.4,1884.3,3.27608534]
[1743237861666,14.92926349,1884.4,1884.3,1.83068534]
[1743237862969,6.65895,1884.4,1884.3,1.83068534]
[1743237863376,3.403,1884.4,1884.3,1.83068534]
[1743237863571,0.00795756,1884.5,1884.4,1.06185]
[1743237863777,0.00795756,1884.5,1884.4,5.10223534]
[1743237865070,0.00795756,1884.5,1884.4,6.78831481]
[1743237865573,0.00795756,1884.5,1884.4,5.10223534]
[1743237866164,1.06974756,1884.5,1884.4,4.04038534]
[1743237866473,0.00795756,1884.5,1884.4,5.10223534]
[1743237869275,1.06974756,1884.5,1884.4,4.04038534]
[1743237869475,1.06974756,1884.5,1884.4,5.10223534]
[1743237869675,0.00795756,1884.5,1884.4,5.10223534]
[1743237871880,0.00795756,1884.5,1884.4,3.27155]
[1743237872079,1.06974756,1884.5,1884.4,2.2097]
[1743237872377,1.06974756,1884.5,1884.4,1.4743]
[1743237872579,1.06185,1884.4,1884.3,0.7154]
[1743237873167,1.06185,1884.4,1884.3,3.88326988]
[1743237874780,1.06185,1884.4,1884.3,2.062]
[1743237875980,1.06185,1884.4,1884.3,1.3466]
[1743237876182,1.06185,1884.4,1884.3,3.16786988]
[1743237876984,1.06185,1884.4,1884.3,3.83676988]
[1743237880485,4.46385,1884.4,1884.3,3.83676988]
[1743237885205,4.46385,1884.4,1884.3,4.89867988]
[1743237885703,4.46385,1884.4,1884.3,3.83676988]
[1743237885904,4.46385,1884.4,1884.3,4.89867988]
[1743237886200,4.46385,1884.4,1884.3,6.58079614]
[1743237886505,4.46385,1884.4,1884.3,5.51888614]
[1743237886805,4.46385,1884.4,1884.3,6.58079614]
[1743237887204,4.46385,1884.4,1884.3,5.51888614]
[1743237890607,4.46385,1884.4,1884.3,3.50338614]
[1743237890903,7.70825,1884.4,1884.0,1.43]
[1743237891096,1.06224,1883.7,1883.6,5.3722]
[1743237891303,1.06222,1883.8,1883.6,5.73228]
[1743237895914,1.06222,1883.8,1883.6,4.67]
[1743237896120,1.06222,1883.8,1883.6,5.73226]
[1743237896410,1.06222,1883.8,1883.6,4.67]
[1743237896612,1.06222,1883.8,1883.7,1.06222]
[1743237896613,1.06219,1883.8,1883.7,1.06222]
[1743237898211,4.46417,1883.9,1883.7,1.06222]
[1743237898406,1.06219,1883.8,1883.7,1.06222]
[1743237898604,4.46417,1883.9,1883.7,1.06222]
[1743237902219,1.06219,1883.8,1883.6,5.73227]
[1743237902619,1.06219,1883.8,1883.7,1.06224]
[1743237902922,4.46415,1883.9,1883.7,1.06224]
[1743237903216,1.06219,1883.8,1883.6,5.73226]
[1743237903418,4.46417,1883.9,1883.7,1.06224]
[1743237903814,1.4331,1884.0,1883.6,4.67]
[1743237904016,4.46402,1884.1,1883.9,1.0621]
[1743237904319,4.46402,1884.1,1884.0,1.3839]
[1743237906019,4.46402,1884.1,1884.0,4.2841829]
[1743237907424,4.46402,1884.1,1884.0,4.91342208]
[1743237908822,4.46402,1884.1,1884.0,5.97550208]
[1743237909025,3.402,1884.1,1884.0,5.97550208]
[1743237909221,2.41015,1884.3,1884.1,1.062]
[1743237909522,3.402,1884.2,1884.1,1.062]
[1743237909724,3.402,1884.2,1884.1,4.36659917]
[1743237910225,5.62719,1884.4,1884.1,4.99591835]
[1743237910421,1.06976756,1884.5,1884.3,1.06185]
[1743237910620,1.06976756,1884.5,1884.4,4.68529917]
[1743237913327,2.41286756,1884.5,1884.4,4.68529917]
[1743237915826,1.35105756,1884.5,1884.4,4.68529917]
[1743237916025,0.00795756,1884.5,1884.4,15.97203746]
[1743237916326,0.00795756,1884.5,1884.4,17.66335664]
[1743237917734,0.00795756,1884.5,1884.4,15.97203746]
[1743237918232,0.00795756,1884.5,1884.4,17.66335664]
[1743237918731,0.00795756,1884.5,1884.4,15.97203746]
[1743237919431,0.00795756,1884.5,1884.4,17.66335664]
[1743237919628,0.00795756,1884.5,1884.4,15.97203746]
[1743237920226,1.06974756,1884.5,1884.4,14.91018746]
[1743237920534,1.06974756,1884.5,1884.4,1.83839917]
[1743237920726,3.14244756,1884.5,1884.4,1.83839917]
[1743237920929,1.06185,1884.4,1884.3,1.83839917]
[1743237921119,2.41525,1884.4,1884.3,3.30069917]
[1743237926034,1.06977756,1884.5,1884.3,3.30069917]
[1743237926332,1.06977756,1884.5,1884.4,3.21109917]
[1743237926531,4.47077756,1884.5,1884.4,3.21109917]
[1743237927441,3.40895756,1884.5,1884.4,4.27294917]
[1743237928336,4.47074756,1884.5,1884.4,4.27294917]
[1743237928732,4.47074756,1884.5,1884.4,4.90241835]
[1743237929232,4.47074756,1884.5,1884.4,3.52971835]
[1743237929429,4.47074756,1884.5,1884.4,1.83839917]
[1743237929723,5.90614756,1884.5,1884.4,1.83839917]
[1743237930539,5.90614756,1884.5,1884.4,3.30459917]
[1743237931037,4.47074756,1884.5,1884.4,3.30459917]
[1743237931944,3.40895756,1884.5,1884.4,6.05776835]
[1743237932438,3.40895756,1884.5,1884.4,9.26556835]
[1743237932937,0.00795756,1884.5,1884.4,16.27200644]
[1743237934646,3.4,1884.8,1884.7,1.06167]
[1743237934934,4.46162,1884.8,1884.7,1.83839917]
[1743237935141,5.89502,1884.8,1884.7,1.83839917]
[1743237935333,5.89502,1884.8,1884.7,3.21289917]
[1743237935535,5.89502,1884.8,1884.7,4.90421835]
[1743237936033,3.4,1884.8,1884.7,5.96589835]
[1743237936537,2.50295756,1884.9,1884.7,5.96589835]
[1743237936742,3.40795756,1884.9,1884.8,8.22781917]
[1743237937042,0.00795756,1884.9,1884.8,8.22781917]
[1743237937838,0.00795756,1884.9,1884.8,8.92661917]
[1743237938034,0.00795756,1884.9,1884.8,10.61793835]
[1743237939037,1.06952756,1884.9,1884.8,6.34851835]
[1743237939443,1.06952756,1884.9,1884.8,5.64971835]
[1743237939444,2.48632756,1884.9,1884.8,5.64971835]
[1743237940141,2.48632756,1884.9,1884.8,3.95839917]
[1743237941641,2.48632756,1884.9,1884.8,3.21839917]
[1743237942948,2.48632756,1884.9,1884.8,3.92539917]
[1743237946152,2.48632756,1884.9,1884.8,3.21839917]
[1743237948256,1.06952756,1884.9,1884.8,3.21839917]
[1743237948455,1.06952756,1884.9,1884.8,3.95299917]
[1743237949958,2.42732756,1884.9,1884.8,3.95299917]
[1743237952457,1.06952756,1884.9,1884.8,5.01461917]
[1743237952857,0.00795756,1884.9,1884.8,6.70593835]
[1743237953061,3.40695756,1884.9,1884.8,6.70593835]
[1743237954649,4.46852756,1884.9,1884.8,6.70593835]
[1743237954954,4.46852756,1884.9,1884.8,5.64431835]
[1743237963064,4.46852756,1884.9,1884.8,6.70593835]
[1743237965466,4.46852756,1884.9,1884.8,5.64431835]
[1743237965862,4.46852756,1884.9,1884.8,6.70593835]
[1743237969163,3.40695756,1884.9,1884.8,6.70593835]
[1743237969562,3.399,1885.1,1884.8,12.67065435]
[1743237969771,3.399,1885.1,1885.0,1.06149]
[1743237970068,3.399,1885.1,1885.0,2.89988917]
[1743237970267,3.399,1885.1,1885.0,6.69070835]
[1743237971563,4.46046,1885.1,1885.0,6.69072835]
[1743237971767,3.399,1885.1,1885.0,5.62921835]
[1743237972068,4.46046,1885.1,1885.0,5.62921835]
[1743237972274,5.86766,1885.1,1885.0,4.93751835]
[1743237972477,9.07546,1885.1,1885.0,3.52971835]
[1743237972773,11.57546,1885.1,1885.0,3.52971835]
[1743237972971,11.57546,1885.1,1885.0,1.83839917]
[1743237973672,9.07546,1885.1,1885.0,1.83839917]
[1743237974173,11.57546,1885.1,1885.0,1.83044161]
[1743237976273,9.07546,1885.1,1885.0,1.83044161]
[1743237977971,5.86766,1885.1,1885.0,1.83044161]
[1743237980071,9.07546,1885.1,1885.0,1.83044161]
[1743237980271,9.07546,1885.1,1885.0,3.29624161]
[1743237981769,9.07546,1885.1,1885.0,1.83044161]
[1743237982370,9.07546,1885.1,1885.0,0.73966161]
[1743237982669,9.07546,1885.1,1884.7,1.3838]
[1743237982670,1.06201,1884.2,1884.0,0.01969]
[1743237982870,4.46094,1884.3,1884.1,1.412]
[1743237983165,4.46094,1884.3,1884.2,1.4696]
[1743237983371,4.46094,1884.3,1884.2,3.16955415]
[1743237983970,4.46094,1884.3,1884.2,1.4696]
[1743237988270,1.06194,1884.3,1884.2,1.4696]
[1743237988472,4.46094,1884.3,1884.2,1.4696]
[1743237992577,1.06196,1884.2,1884.1,1.41995756]
[1743237992780,1.06196,1884.2,1884.1,4.71181615]
[1743237994377,1.06196,1884.2,1884.1,2.90055756]
[1743237994979,1.06196,1884.2,1884.1,4.71181615]
[1743237995381,1.06196,1884.2,1884.1,2.90055756]
[1743237996177,1.06185,1884.4,1884.2,1.06196]
[1743237996374,3.2078,1884.6,1884.3,1.81125859]
[1743237996576,3.399,1884.5,1884.4,1.4573]
[1743237997683,3.2078,1884.6,1884.4,2.51912]
[1743237997882,4.26955,1884.6,1884.5,0.7218]
[1743237998087,6.6068,1884.6,1884.5,2.1337]
[1743237998277,6.6068,1884.6,1884.5,3.19549]
[1743237999182,18.73633601,1884.7,1884.6,1.06174]
[1743237999493,18.73633601,1884.7,1884.6,4.28489859]
[1743237999494,22.13533601,1884.7,1884.6,4.28489859]
[1743237999684,3.399,1884.7,1884.6,4.28489859]
[1743237999888,18.73633601,1885.1,1884.6,3.22315859]
[1743238000078,18.73633601,1885.1,1884.9,3.2078]
[1743238000278,18.73633601,1885.1,1885.0,2.1337]
[1743238000279,19.79781601,1885.1,1885.0,2.1337]
[1743238000584,23.19681601,1885.1,1885.0,2.1337]
[1743238000978,22.13533601,1885.1,1885.0,5.00646859]
[1743238001888,3.399,1885.1,1885.0,5.00646859]
[1743238003786,0.00795756,1885.2,1885.1,1.06146]
[1743238003987,3.40695756,1885.2,1885.1,2.47846]
[1743238004990,4.46835756,1885.2,1885.1,1.417]
[1743238006394,5.93975756,1885.2,1885.1,1.417]
[1743238009692,1.06146,1885.1,1885.0,0.7218]
[1743238009893,1.06151,1885.0,1884.9,1.4514]
[1743238018199,2.50139,1885.1,1884.9,2.51297]
[1743238018499,3.398,1885.1,1885.0,1.06149]
[1743238018700,4.45946,1885.1,1885.0,2.42439]
[1743238018996,4.45946,1885.1,1885.0,1.3629]
[1743238019195,5.80636,1885.1,1885.0,1.3629]
[1743238022903,1.06157,1884.9,1884.8,3.26799635]
[1743238023105,1.06157,1884.9,1884.8,4.64379635]
[1743238023502,2.46457,1884.9,1884.8,4.64379635]
[1743238024301,1.06157,1884.9,1884.8,4.64379635]
[1743238024701,1.06157,1884.9,1884.8,6.34052684]
[1743238025107,1.06157,1884.9,1884.8,4.88222684]
[1743238025302,1.79467,1884.9,1884.8,4.88222684]
[1743238025709,1.79467,1884.9,1884.8,3.18549635]
[1743238026904,1.79467,1884.9,1884.5,1.3596]
[1743238026905,1.06174,1884.6,1884.5,1.3596]
[1743238027107,4.45874,1884.6,1884.5,3.2312493]
[1743238027317,4.45874,1884.6,1884.5,3.51252321]
[1743238027609,4.45874,1884.6,1884.5,1.8145493]
[1743238027812,5.83724,1884.6,1884.5,1.8145493]
[1743238028306,4.45874,1884.6,1884.5,3.51252321]
[1743238028507,4.45874,1884.6,1884.5,4.20052321]
[1743238028811,4.45874,1884.6,1884.5,5.64642321]
[1743238030613,4.45874,1884.6,1884.5,1.8145493]
[1743238030816,5.18234,1884.6,1884.5,1.8145493]
[1743238031011,1.06179,1884.5,1884.4,3.14387391]
[1743238031312,2.52639,1884.5,1884.4,4.95869617]
[1743238031612,2.52639,1884.5,1884.4,3.26072226]
[1743238033207,1.06179,1884.5,1884.4,3.26072226]
[1743238038220,5.86149,1885.1,1884.4,3.26072226]
[1743238038518,1.06168,1884.7,1884.6,4.26952]
[1743238038720,4.45968,1884.7,1884.6,7.45264226]
[1743238038933,4.45968,1884.7,1884.6,8.19394226]
[1743238039120,4.45968,1884.7,1884.6,7.13222226]
[1743238041125,4.45968,1884.7,1884.6,9.89097759]
[1743238041126,3.398,1884.7,1884.6,9.89097759]
[1743238042213,1.06166,1884.8,1884.6,9.89097759]
[1743238042412,4.45966,1884.8,1884.7,3.25442226]
[1743238043615,7.66746,1884.8,1884.7,1.81482226]
[1743238043918,1.06168,1884.7,1884.6,1.69701533]
[1743238044221,1.06179,1884.5,1884.4,3.25463059]
[1743238044526,4.45979,1884.5,1884.4,3.25463059]
[1743238047509,5.12889,1884.5,1884.4,3.25463059]
[1743238048819,4.45979,1884.5,1884.4,3.25463059]
[1743238051718,4.45979,1884.5,1884.4,4.95258884]
[1743238057827,3.2078,1884.8,1884.4,4.95258884]
[1743238058127,4.45968,1884.7,1884.6,3.2078]
[1743238058323,40.59862493,1884.9,1884.7,1.06165]
[1743238058631,42.93502493,1884.9,1884.8,4.35735059]
[1743238058819,42.93502493,1884.9,1884.8,13.02245099]
[1743238059627,3.398,1884.9,1884.8,13.02245099]
[1743238061026,4.45957,1884.9,1884.8,11.96083099]
[1743238061222,5.86327,1884.9,1884.8,4.99368884]
[1743238061721,5.86327,1884.9,1884.8,3.29573059]
[1743238064414,6.57737,1884.9,1884.8,3.29573059]
[1743238065727,5.86327,1884.9,1884.8,3.29573059]
[1743238071630,1.06157,1884.9,1884.8,3.29573059]
[1743238071836,4.45857,1884.9,1884.8,3.29573059]
[1743238073328,5.18057,1884.9,1884.8,1.4824]
[1743238074337,5.18057,1884.9,1884.8,3.29581415]
[1743238074533,5.18057,1884.9,1884.8,1.4824]
[1743238074731,5.18057,1884.9,1884.8,3.29581782]
[1743238077334,4.45857,1884.9,1884.8,3.29581782]
[1743238077740,5.82157,1884.9,1884.8,3.29581782]
[1743238081937,4.45857,1884.9,1884.8,3.29581782]
[1743238082839,1.06155,1885.0,1884.8,4.35743782]
[1743238083145,4.45855,1885.0,1884.9,3.84431782]
[1743238083341,4.45855,1885.0,1884.9,4.56941782]
[1743238086644,4.45855,1885.0,1884.9,6.26217378]
[1743238087240,4.45855,1885.0,1884.9,4.56941782]
[1743238087948,4.45855,1885.0,1884.9,6.26338705]
[1743238089843,3.397,1885.0,1884.9,7.32495705]
[1743238090140,18.73633601,1885.1,1885.0,1.06151]
[1743238090330,18.73633601,1885.1,1885.0,4.31972782]
[1743238090540,0.00795756,1885.2,1885.1,1.06146]
[1743238090743,3.40495756,1885.2,1885.1,7.52747782]
[1743238091139,3.40495756,1885.2,1885.1,9.22144705]
[1743238092144,4.46635756,1885.2,1885.1,9.22144705]
[1743238092535,4.46635756,1885.2,1885.1,8.15998705]
[1743238092736,3.40495756,1885.2,1885.1,9.22144705]
[1743238096249,4.46635756,1885.2,1885.1,8.15998705]
[1743238099551,4.46635756,1885.2,1885.1,9.22144705]
[1743238100054,4.46635756,1885.2,1885.1,7.52747782]
[1743238100351,4.46635756,1885.2,1885.1,6.46601782]
[1743238100749,4.46635756,1885.2,1885.1,9.22144705]
[1743238101046,4.46635756,1885.2,1885.1,7.52747782]
[1743238101354,3.40495756,1885.2,1885.1,7.52747782]
[1743238101851,3.40495756,1885.2,1885.1,9.22144705]
[1743238102447,3.40495756,1885.2,1885.1,7.52747782]
[1743238103248,3.40495756,1885.2,1885.1,9.22144705]
[1743238103853,3.40495756,1885.2,1885.1,7.52747782]
[1743238104256,3.40495756,1885.2,1885.1,9.22144705]
[1743238104855,3.40495756,1885.2,1885.1,7.52747782]
[1743238105054,0.00795756,1885.2,1885.1,14.5278685]
[1743238105447,0.00795756,1885.2,1885.1,16.22183773]
[1743238106146,3.396,1885.4,1885.1,16.22183773]
[1743238106454,3.396,1885.4,1885.3,4.26914]
[1743238106665,3.396,1885.4,1885.3,6.08255782]
[1743238106856,3.396,1885.4,1885.3,7.52115782]
[1743238107248,3.396,1885.4,1885.3,9.21512705]
[1743238108557,0.00795756,1885.5,1885.4,1.06129]
[1743238108743,1.06918756,1885.5,1885.4,3.21421782]
[1743238108949,2.48958756,1885.5,1885.4,4.27550782]
[1743238109144,0.00795756,1885.5,1885.4,5.96947705]
[1743238115248,1.06918756,1885.5,1885.4,5.96947705]
[1743238115450,0.00795756,1885.5,1885.4,5.96947705]
[1743238115651,1.42845756,1885.5,1885.4,5.96947705]
[1743238115858,2.48968756,1885.5,1885.4,5.96947705]
[1743238116060,1.42845756,1885.5,1885.4,5.96947705]
[1743238118757,2.48968756,1885.5,1885.4,4.90818705]
[1743238120662,1.42845756,1885.5,1885.4,5.96947705]
[1743238121763,2.48968756,1885.5,1885.4,5.96947705]
[1743238121952,1.42845756,1885.5,1885.4,5.96947705]
[1743238122663,0.00795756,1885.5,1885.4,5.96947705]
[1743238124562,0.00795756,1885.5,1885.4,12.90482429]
[1743238127776,3.395,1885.7,1885.4,11.84353429]
[1743238128065,3.395,1885.7,1885.6,3.2078]
[1743238128266,3.395,1885.8,1885.7,1.0611]
[1743238128465,4.45606,1885.8,1885.7,3.16281782]
[1743238128660,4.45606,1885.8,1885.7,1.81341782]
[1743238128862,1.06112,1885.7,1885.6,1.69396923]
[1743238129058,3.21692,1885.7,1885.6,3.50364097]
[1743238129665,3.21692,1885.7,1885.6,1.80967174]
[1743238130766,1.06129,1885.4,1885.3,1.69628725]
[1743238130971,4.45629,1885.4,1885.3,1.69628725]
[1743238131171,1.06134,1885.3,1885.2,4.67385756]
[1743238131371,3.21714,1885.3,1885.2,4.67385756]
[1743238131769,3.21714,1885.3,1885.2,6.3711203]
[1743238132373,3.21714,1885.3,1885.2,3.1633203]
[1743238132774,3.21714,1885.3,1885.2,1.7052203]
[1743238133265,3.21714,1885.3,1885.2,1.73341376]
[1743238133465,3.21714,1885.3,1885.2,0.03615102]
[1743238140972,3.21714,1885.3,1885.2,1.47715102]
[1743238141675,3.21714,1885.3,1885.2,0.03615102]
[1743238152082,6.42494,1885.3,1885.2,0.03615102]
[1743238153674,1.06157,1884.9,1884.8,3.14386558]
[1743238153874,4.45657,1884.9,1884.8,4.95314338]
[1743238154179,7.66437,1884.9,1884.8,1.69746558]
[1743238154369,1.06174,1884.6,1884.5,1.69746558]
[1743238154568,4.45674,1884.6,1884.5,1.69746558]
[1743238154782,4.45674,1884.6,1884.5,3.50712633]
[1743238154985,4.45674,1884.6,1884.5,3.27936115]
[1743238155176,4.45674,1884.6,1884.5,1.4693]
[1743238158185,1.06179,1884.5,1884.4,0.00795756]
[1743238158486,5.66519,1884.5,1884.4,0.00795756]
[1743238158679,5.66519,1884.5,1884.4,1.34705756]
[1743238159080,5.66519,1884.5,1884.3,0.6705]
[1743238159081,1.06185,1884.4,1884.3,0.6705]
[1743238159294,2.47505,1884.4,1884.3,0.6705]
[1743238160676,1.06185,1884.4,1884.3,1.3947]
[1743238162485,1.06185,1884.4,1884.3,2.7298]
[1743238163184,4.45785,1884.4,1884.3,2.7298]
[1743238165993,3.21575756,1884.7,1884.3,9.56271259]
[1743238166193,4.45776,1884.6,1884.4,2.49204]
[1743238166500,4.45776,1884.6,1884.5,1.4302]
[1743238167595,3.396,1884.6,1884.5,1.4302]
[1743238167798,3.40395756,1884.7,1884.5,6.44875272]
[1743238168098,4.46564756,1884.7,1884.6,0.7083]
[1743238168394,4.46564756,1884.7,1884.6,2.7478]
[1743238168599,3.40395756,1884.7,1884.6,4.55855272]
[1743238168897,4.46563756,1884.7,1884.6,4.55855272]
[1743238169099,3.40395756,1884.7,1884.6,5.62029272]
[1743238170100,4.46563756,1884.7,1884.6,5.62029272]
[1743238170285,4.46563756,1884.7,1884.6,4.55855272]
[1743238172694,4.46563756,1884.7,1884.6,2.0498]
[1743238172898,3.40395756,1884.7,1884.4,0.7217]
[1743238173213,1.06185,1884.4,1884.3,2.5204661]
[1743238173390,4.45785,1884.4,1884.3,2.1355]
[1743238173591,4.45785,1884.4,1884.3,3.94686739]
[1743238173792,4.45785,1884.4,1884.3,2.1355]
[1743238174698,5.83835,1884.4,1884.3,2.1355]
[1743238177693,1.06185,1884.4,1884.3,2.1355]
[1743238177902,4.45785,1884.4,1884.3,2.1355]
[1743238186499,1.06191,1884.3,1884.2,3.21575756]
[1743238186805,2.49981,1884.3,1884.2,0.00795756]
[1743238187707,2.49981,1884.3,1884.2,1.40835756]
[1743238190402,3.18921,1884.3,1884.2,0.00795756]
[1743238201407,3.18921,1884.3,1884.2,7.56e-06]
[1743238203028,5.68921,1884.3,1884.2,7.56e-06]
[1743238204627,1.06236,1883.5,1883.4,0.7169]
[1743238204928,4.45936,1883.5,1883.4,2.1929]
[1743238205528,5.93346,1883.5,1883.4,2.1929]
[1743238205920,5.93346,1883.5,1883.4,2.8941]
[1743238208233,3.397,1883.5,1883.4,2.8941]
[1743238208433,3.397,1883.5,1883.4,3.95651]
[1743238208736,3.40495756,1883.6,1883.5,1.06236]
[1743238208935,3.40495756,1883.6,1883.5,2.50256]
[1743238209637,4.46725756,1883.6,1883.5,1.4402]
[1743238213442,3.40495756,1883.6,1883.5,5.71036]
[1743238213636,1.06224,1883.8,1883.6,1.06228]